Cogmind - Beta 10.2 @@@ ROGUE MODE // 2021.08.14 @ 12:17:04 Player: Sam Result: Destroyed by G-34 Mercenary with Small Laser Performance ------------- Evolutions (0) 0 Regions Visited (1) 200 Robots Destroyed (18) 90 Value Destroyed (448) 448 Prototype IDs (0) 0 Alien Tech Used (0) 0 Bonus (0) 0 TOTAL SCORE: 738 Bonus ------- None Cogmind --------- Core Integrity 0/250 Matter 235/300 Energy 250/250 System Corruption 0% Temperature Cool (6) Movement Treading (160) Location -10/Materials Parts ------- > --- POWER (1) -------- Ion Engine > --- PROPULSION (2) --- Light Treads Light Treads > --- UTILITY (2) ------ Heat Sink Medium Storage Unit > --- WEAPON (2) ------- Small Laser Assault Rifle > --- INVENTORY (8) ---- Ion Engine Light Ion Engine Sensor Array Datajack Peak State ------------ > --- POWER ------------ Ion Engine > --- PROPULSION ------- Light Treads Light Treads > --- UTILITY ---------- Small Storage Unit Improved Targeting Computer > --- WEAPON ----------- EM Pulse Gun Assault Rifle > --- INVENTORY -------- Light Ion Engine Small Laser [Rating: 8] Favorites ----------- Power Ion Engine Engine Ion Engine Propulsion Light Treads Treads Light Treads Leg Aluminum Leg Utility Small Storage Unit Device Heat Sink Storage Small Storage Unit Processor Improved Targeting Computer Weapon Assault Rifle Energy Gun EM Pulse Gun Ballistic Gun Assault Rifle Build | -11 -10 ------- Run | Scr Mat Slots Evolved . | . . Power . | . . Propulsion . | . . Utility . | . . Weapon . | . . Parts Attached 22 | 7 15 Power 2 | 2 . Engine 2 | 2 . Core . | . . Reactor . | . . Propulsion 6 | 2 4 Treads 4 | 2 2 Leg 2 | . 2 Wheel . | . . Hover . | . . Flight . | . . Utility 4 | 1 3 Device 1 | . 1 Storage 2 | 1 1 Processor 1 | . 1 Hackware . | . . Protection . | . . Artifact . | . . Weapon 10 | 2 8 Energy Gun 7 | 1 6 Energy Cannon . | . . Ballistic Gun 3 | 1 2 Ballistic Cannon . | . . Launcher . | . . Special Weapon . | . . Impact Weapon . | . . Slashing Weapon . | . . Piercing Weapon . | . . Special Melee Weapon . | . . Unidentified Prototypes . | . . Parts Lost 6 | . 6 Power . | . . Propulsion 1 | . 1 Utility 1 | . 1 Weapon 4 | . 4 Highest Loss Streak 3 | . 3 Average Slot Usage (%) 86 | . 86 Engine 14 | . 14 Treads 14 | . 14 Leg 12 | . 12 Device 2 | . 2 Storage 14 | . 14 Processor 1 | . 1 Energy Gun 17 | . 17 Ballistic Gun 9 | . 9 Naked Turns . | . . Heaviest Build 20 | 13 20 Greatest Support 40 | 40 40 Greatest Overweight (x) 1 | . 1 Average Overweight (x) . | . . Largest Inventory Capacity 10 | 6 10 Average Capacity 6 | 5 6 Most Carried 6 | 2 6 Average Carried 3 | 1 4 Final Capacity 8 | 6 8 Final Carried 4 | 2 4 Class Distribution -------------------- 82% | Mutant 17% | Scavenger-Mutant Dominant Class ---------------- Mutant | -10/Materials Resources | -11 -10 ----------- Run | Scr Mat Matter Collected 496 | 264 232 Remotely . | . . Salvage Created 592 | . 592 Parts 48 | . 48 Haulers Intercepted 1 | . 1 Recyclers Shooed . | . . Parts Field Recycled . | . . Retrieved Matter . | . . Parts Self-Destructed . | . . Prevented . | . . Kills | -11 -10 ------- Run | Scr Mat Combat Hostiles Destroyed 11 | . 11 Guns 10 | . 10 AOE 1 | . 1 Classes Destroyed 6 | . 6 Builder 3 | . 3 Hauler 1 | . 1 Operator 1 | . 1 Watcher 2 | . 2 Swarmer 1 | . 1 Grunt 10 | . 10 Best Kill Streak 7 | . 7 Combat Bots Only 5 | . 5 Max Kills in Single Turn 2 | . 2 Gunslinging 1 | . 1 Exploded 1 | . 1 Melee . | . . Uniques/NPCs Destroyed . | . . Combat | -11 -10 -------- Run | Scr Mat Damage Taken 958 | . 958 Core 251 | . 251 Absorbed by Shields . | . . Core Remaining (%) 100 | 100 . Volleys Fired 69 | . 69 Largest 2 | . 2 Hottest 105 | . 105 Shots Fired 131 | . 131 Gun 131 | . 131 Cannon . | . . Launcher . | . . Special . | . . Kinetic 38 | . 38 Thermal 61 | . 61 Explosive . | . . Electromagnetic 32 | . 32 Robot Hit Streak 17 | . 17 Robot Miss Streak 4 | . 4 Penetration Max . | . . Secondary Targets 4 | . 4 Max Gunslinging Chain 1 | . 1 Shots Hit Robots 96 | . 96 Core Hits 28 | . 28 Critical Hits . | . . Critical Kills . | . . Critical Parts Destroyed . | . . Melee Attacks . | . . Impact . | . . Slashing . | . . Piercing . | . . Sneak Attacks . | . . Combat Hostiles . | . . Follow-up Attacks . | . . Damage Inflicted 832 | . 832 Guns 679 | . 679 Cannons . | . . Explosions 153 | . 153 Melee . | . . Ramming . | . . Kinetic 240 | . 240 Thermal 354 | . 354 Explosive . | . . Electromagnetic 238 | . 238 Impact . | . . Slashing . | . . Piercing . | . . Highest Corruption . | . . Average Corruption . | . . Corruption Purged . | . . Overload Shots . | . . Overflow Damage . | . . Projectiles . | . . Explosions . | . . Melee . | . . Knockbacks . | . . Impact . | . . Kinetic . | . . Secondary . | . . Self-Inflicted Damage 20 | . 20 Shots 1 | . 1 Rammed . | . . Targets Rammed . | . . Kicked . | . . Crushed . | . . Highest Temperature 373 | . 373 Average Temperature 134 | . 134 Received Heat Transfer 501 | . 501 Effects 1 | . 1 Matter Decay 1 | . 1 Siege Activations . | . . Robots Corrupted . | . . Combat Hostiles . | . . Parts Fried 1 | . 1 Impact Corruptions . | . . Robots Melted . | . . Combat Hostiles . | . . Parts Melted 1 | . 1 Heat Transferred 561 | . 561 Parts Sabotaged . | . . Parts Stolen . | . . Parts Stripped . | . . Power Chain Reactions 2 | . 2 Missiles Intercepted . | . . Alert | -11 -10 ------- Run | Scr Mat Peak Influence 349 | . 349 Initial . | . . Average 153 | . 179 Maximum Alert Level 1 | . 1 Low Security (%) 69 | 100 64 Level 1 30 | . 35 Level 2 . | . . Level 3 . | . . Level 4 . | . . Level 5 . | . . High Security . | . . Max Security . | . . Squads Dispatched 3 | . 3 Investigation . | . . Extermination . | . . Reinforcement 3 | . 3 Assault . | . . Garrison . | . . Intercept . | . . Construction Impeded . | . . Haulers Reinforced . | . . Stealth | -11 -10 --------- Run | Scr Mat Distress Signals 2 | . 2 Communications Jammed . | . . Distress Signals . | . . Times Spotted 23 | . 23 Peak Tracking Total 6 | . 6 Tactical Retreats 2 | . 2 Traps | -11 -10 ------- Run | Scr Mat Traps Triggered . | . . Indirectly . | . . Trap Hack Attempts . | . . Triggered . | . . Disarmed . | . . Reprogrammed . | . . Reused . | . . Traps Extracted . | . . Installed . | . . Triggered . | . . Machines | -11 -10 ---------- Run | Scr Mat Machines Disabled 2 | . 2 Max in Single Turn 1 | . 1 Machines Sabotaged . | . . Garrisons Compromised . | . . Overloaded Fab Kills . | . . Fab Network Shutdowns . | . . Hacking | -11 -10 --------- Run | Scr Mat Machines Accessed 1 | . 1 Terminals 1 | . 1 Fabricators . | . . Repair Stations . | . . Recycling Units . | . . Scanalyzers . | . . Garrison Access . | . . Total Hacks 2 | . 2 Successful . | . . Failed 2 | . 2 Catastrophic 1 | . 1 Database Lockouts . | . . Manual . | . . Terminals 2 | . 2 Fabricators . | . . Repair Stations . | . . Recycling Units . | . . Scanalyzers . | . . Garrison Access . | . . Terminal Hacks . | . . Fabricator Hacks . | . . Repair Station Hacks . | . . Recycling Unit Hacks . | . . Scanalyzer . | . . Garrison Access Hacks . | . . Unauthorized Hacks . | . . Terminals . | . . Fabricators . | . . Repair Stations . | . . Recycling Units . | . . Scanalyzers . | . . Garrison Access . | . . Data Cores Recovered . | . . Used . | . . Hacking Detections 1 | . 1 Full Trace Events 1 | . 1 Feedback Events . | . . Feedback Blocked . | . . Robot Schematics Acquired . | . . Robots Built . | . . Matter . | . . Time . | . . Total Robot Build Rating . | . . Part Schematics Acquired . | . . Parts Built . | . . Matter . | . . Time . | . . Total Part Build Rating . | . . Parts Repaired . | . . Time . | . . Parts Recycled . | . . Recycled Matter . | . . Retrieved Matter . | . . Retrieved Components . | . . Parts Scanalyzed . | . . Part Schematics Acquired . | . . Parts Damaged . | . . Bothacking | -11 -10 ------------ Run | Scr Mat Used RIF Installer . | . . Robots Hacked . | . . Non-combat . | . . Combat . | . . Robot Hacks Applied . | . . Relay Couplers Released . | . . Robots Rewired . | . . Allies Hacked . | . . Hacks Repelled . | . . Allies | -11 -10 -------- Run | Scr Mat Total Allies . | . . Largest Group . | . . Highest-Rated Group . | . . Highest-Rated Ally . | . . Total Orders . | . . Ally Attacks . | . . Total Damage . | . . Kills . | . . Allies Corrupted . | . . Allies Melted . | . . Intel | -11 -10 ------- Run | Scr Mat Robot Analysis Total . | . . Derelict Logs Recovered . | . . Drone Launches . | . . Drone Recoveries . | . . Exploration | -11 -10 ------------- Run | Scr Mat Turns Passed 552 | 80 472 Spaces Moved 223 | 45 178 Core 2 | 2 . Treads 107 | 43 64 Legs 114 | . 114 Wheels . | . . Hover . | . . Flight . | . . Fastest Speed 50 | 50 120 Average Speed 138 | 155 134 Slowest Speed 160 | 160 160 Overloaded Moves . | . . Propulsion Burnouts . | . . Robots Hopped . | . . Cave-ins Triggered . | . . Exploration Rate (%) 18 | 4 32 Regions Visited 1 Branch Regions . Pre-discovered Areas . | . . Known Exits Taken . | . . Unknown Exits Taken 1 | 1 . Scrap Searched . | . . Spaces Dug . | . . Terrain Destroyed 10 | . 10 Melee . | . . Projectile . | . . AOE 10 | . 10 Terrain Rammed . | . . Walls Destroyed . | . . Machines Disabled . | . . Actions | -11 -10 --------- Run | Scr Mat Total 328 | 52 276 Wait 4 | . 4 Move 222 | 44 178 Hop . | . . Pick Up 7 | 1 6 Fast Attach 11 | 6 5 Attach 5 | . 5 Detach . | . . Swap 6 | 1 5 Drop 4 | . 4 Fire 69 | . 69 Melee . | . . Ram . | . . Kick . | . . Crush . | . . Escape Stasis . | . . Rewire . | . . Trap . | . . Miscellaneous . | . . Route ------- -11/Scrapyard -10/Materials (discovered 2 exits: [*Mat] / [*Min]) History --------- Turn | Location | Event 36 | -11/Scrapyard | Discovered new exit (range 16) 81 | -11/Scrapyard | Entered Materials 230 | -10/Materials | Core integrity fell below 50% 249 | -10/Materials | Lost 3 parts (1n2w) 306 | -10/Materials | Build established: Mutant 336 | -10/Materials | Discovered new exit (range 6) 412 | -10/Materials | Discovered new exit (range 14) 504 | -10/Materials | Core integrity fell below 20% 553 | -10/Materials | Destroyed by G-34 Mercenary with Small Laser Last Messages --------------- O-16 Technician destroyed. K-01 Serf collects debris. Acquired 22 matter. K-01 Serf collects debris. Acquired 17 matter. K-01 Serf collects debris. Acquired Datajack. A-02 Transporter destroyed. Dropped Aluminum Leg. Acquired Lgt. Treads. Dropped Aluminum Leg. Acquired Lgt. Treads. Acquired 42 matter. Acquired Med. Storage Unit. Dropped Sml. Storage Unit. Aluminum Leg melted. G-34 Mercenary destroyed. U-05 Engineer lays Concrete. Sml. Laser destroyed. K-01 Serf collects debris. Map ----- +----------------------------------------------------+ | = ==%#"### #????????????????????? | | " =!## ## #????????????????????? | | ! [############ ?????????????????? | | % #??????????########## #???????????????? | | == #?????????????????????????????????????? | | # #?????????????????????????????????????? | | # " #?????????????????????????????????????? | | # " % #?????????????????????????????????????? | | # "" %#?????????????????????????????????????? | | + #?????????????????????????????????????? | | # %#?????????????????????????????????????? | | # """ % ####+####+#???????????????????????????? | | # """ ###?????????????????????????? | | # """ ^ ??????????????????????????? | | # ^ "" ??????????????????????????? | | # ^ "" ??????????????????????????? | | # """ T" #?????????????????????????? | | # """ "" #???????????????????????????????? | | """ ="" ##########????????#?????????????? | | * = ##"""""""#?????? #?????????????? | | * ! ##" |"| "#????? ##????????????? | | ## """ #### ##" "##### #????????????? | | ## """ #??# = ! #????????????? | | ## """ #??# k < !%g #????????????? | | ## #??# !! !! #????????????? | | ## #??###+## =@##### #????????????? | | ## """ #???????#########?????? ##????????????? | | ## """ #???????????????????????? ???????????? | | ## """ #?????????????????????????? ?????????? | | ## #???????????????????????????? ????????? | | ?# #??????????????????????????????????????? | | ?# """ ??????????????????????????????????????? | | ?# "?" #??????????????????????????????????????? | | ?? "?" #??????????????????????????????????????? | | ?? ??? #??????????????????????????????????????? | | ?? ??? ???????????????????????????????????????? | | ?????????????????????????????????????????????????? | | ?????????????????????????????????????????????????? | | ?????????????????????????????????????????????????? | | ?????????????????????????????????????????????????? | | ?????????????????????????????????????????????????? | | ?????????????????????????????????????????????????? | | ?????????????????????????????????????????????????? | | ?????????????????????????????????????????????????? | | ?????????????????????????????????????????????????? | | ?????????????????????????????????????????????????? | | ?????????????????????????????????????????????????? | | ?????????????????????????????????????????????????? | | ?????????????????????????????????????????????????? | | ?????????????????????????????????????????????????? | +----------------------------------------------------+ Best States ------------- Heat Dissipation 35 Energy Generation 10 Energy Capacity 250 Matter Stores 300 Matter Capacity 300 Sight Range 16 Terrain Scan Density 10 Evasion (%) 40 Targeting Accuracy 6 Recoil Reduction 2 Item Schematics ----------------- None Robot Schematics ------------------ None Fabricated ------------ Nothing Alien Tech Used ----------------- None Achievements -------------- None Challenges ------------ None Game ------ Seed LatentLightpackBuckler Manual? 0 Play Time 00:08:48 Cumulative 12.6 hours Start 2021.08.14 @ 12:09:00 End 2021.08.14 @ 12:17:04 Sessions 1 Manual Loads 0 Difficulty Rogue Special Mode None Game No. 19 Rogue 19 Adventurer 0 Explorer 0 Win Type - Total 0 Types 0/0/0/0/0/0/0/0/0 Lore% 17 Gallery% 22 Achievement% 14 Wizard Run 0 Options --------- ASCII 0 Keyboard 0 Movement Mouse Keybinds 0 Fullscreen 1 Font 18/Terminus Map View 76x50 Tactical HUD 0 Map Filters NONE Filters NONE Steam 1 RUN: f00961ae-1f07-4913-9683-803e33406afa